bitfinex/quotes_ETHUSD_20250426
["timestamp","ask_amount","ask_price","bid_price","bid_amount"]
[1745646689949,23.9206,1798.2,1798.1,6.12999999]
[1745646691357,7.2316,1798.2,1798.1,6.12999999]
[1745646691549,5.0989,1798.2,1798.1,6.12999999]
[1745646701632,8.0989,1798.2,1798.1,6.12999999]
[1745646704144,3.0,1798.1,1797.8,6.12999999]
[1745646704787,0.4609,1798.0,1797.8,6.12999999]
[1745646709703,16.687,1798.1,1797.8,6.12999999]
[1745646709861,16.687,1798.1,1797.9,5.5620446]
[1745646710285,16.687,1798.1,1797.9,5.56182591]
[1745646710491,16.687,1798.1,1798.0,0.7708]
[1745646710897,16.687,1798.1,1798.0,6.33253526]
[1745646711501,4.638,1798.2,1798.1,5.56142594]
[1745646712697,4.638,1798.2,1798.0,6.3324213]
[1745646713195,5.1018,1798.2,1797.9,5.56199337]
[1745646713358,5.1018,1798.2,1797.8,12.46302727]
[1745646713572,5.1018,1798.2,1797.9,5.56203502]
[1745646717278,5.1018,1798.2,1797.9,5.56202225]
[1745646720913,3.97108,1798.1,1797.8,6.12999999]
[1745646721337,3.97108,1798.1,1797.8,11.69235192]
[1745646723825,3.97108,1798.1,1797.8,6.12999999]
[1745646725932,4.636,1798.0,1797.8,6.12999999]
[1745646728654,3.4609,1797.9,1797.8,6.12999999]
[1745646728938,4.27059,1797.9,1797.8,6.12999999]
[1745646729299,0.4609,1797.6,1797.1,0.8189]
[1745646729504,4.636,1797.5,1797.3,5.56388832]
[1745646729720,4.636,1797.5,1797.1,6.94889999]
[1745646729914,4.636,1797.5,1797.2,5.56399464]
[1745646730929,4.636,1797.5,1797.1,6.94889999]
[1745646731145,7.636,1797.5,1797.4,5.56359185]
[1745646731341,7.636,1797.5,1797.2,6.38296673]
[1745646732410,7.636,1797.5,1797.3,5.56389282]
[1745646734746,7.636,1797.5,1797.2,6.38292442]
[1745646734921,7.636,1797.5,1797.2,0.8189]
[1745646735244,8.3996,1797.5,1797.2,0.8189]
[1745646735742,8.3996,1797.5,1797.1,11.69430541]
[1745646737411,8.3996,1797.5,1797.1,6.12999999]
[1745646737614,8.3996,1797.5,1797.1,11.69450853]
[1745646738037,8.3996,1797.5,1797.1,6.12999999]
[1745646738232,0.83996,1797.4,1797.1,6.12999999]
[1745646738415,0.83996,1797.4,1797.1,11.69450741]
[1745646738928,0.83996,1797.4,1797.1,6.12999999]
[1745646739873,0.83996,1797.4,1797.1,11.6945125]
[1745646741946,0.83996,1797.4,1797.1,6.12999999]
[1745646742140,1.30086,1797.4,1797.1,6.12999999]
[1745646742860,1.30086,1797.4,1797.1,11.69451145]
[1745646743041,0.4609,1797.4,1797.1,11.69451145]
[1745646745814,7.636,1797.5,1797.3,5.5639014]
[1745646746316,4.636,1797.5,1797.4,5.56359185]
[1745646746561,4.636,1797.5,1797.4,6.33549185]
[1745646747822,4.636,1797.5,1797.4,8.02586946]
[1745646748255,4.636,1797.5,1797.4,14.15586945]
[1745646762776,21.326,1797.7,1797.6,6.33577285]
[1745646762945,21.326,1797.7,1797.6,12.46577284]
[1745646766467,21.326,1797.7,1797.6,11.69297284]
[1745646766647,4.635,1797.7,1797.6,11.69297284]
[1745646767773,4.635,1797.7,1797.6,6.12999999]
[1745646768070,5.14459,1797.7,1797.6,11.69297284]
[1745646768680,4.635,1797.7,1797.6,11.69297284]
[1745646782179,5.0959,1797.7,1797.6,6.12999999]
[1745646782580,3.0,1797.6,1797.3,6.12999999]
[1745646782748,0.4609,1797.5,1797.3,6.12999999]
[1745646782947,0.80699,1797.5,1797.3,11.69389273]
[1745646784987,0.80699,1797.5,1797.3,6.12999999]
[1745646785191,0.80699,1797.5,1797.3,11.69389041]
[1745646788397,0.80699,1797.5,1797.3,6.12999999]
[1745646788598,0.80699,1797.5,1797.3,11.69378352]
[1745646788815,0.4609,1797.5,1797.3,6.12999999]
[1745646795211,0.4609,1797.5,1797.3,11.69387698]
[1745646795913,0.4609,1797.5,1797.3,6.12999999]
[1745646800938,0.4609,1797.5,1797.2,5.56409782]
[1745646801916,0.4609,1797.5,1797.1,5.56431228]
[1745646802238,0.80699,1797.5,1797.1,5.56431228]
[1745646805448,0.4609,1797.4,1797.0,6.12999999]
[1745646805621,0.4609,1797.2,1797.0,6.12999999]
[1745646809746,0.4609,1797.2,1797.0,11.69480668]
[1745646810544,5.186,1797.3,1797.0,11.69480668]
[1745646810733,7.8349,1797.3,1797.0,11.69480668]
[1745646814852,3.0,1797.2,1796.8,0.756]
[1745646815146,0.4609,1797.1,1796.8,5.56534106]
[1745646820556,0.4609,1797.1,1796.9,5.56510482]
[1745646820763,3.4609,1797.2,1796.9,5.56510482]
[1745646822064,3.4609,1797.2,1797.0,5.56481271]
[1745646822264,3.0,1797.2,1797.0,5.56481271]
[1745646823045,3.0,1797.2,1796.9,5.56507407]
[1745646823648,3.0,1797.2,1796.9,11.13000199]
[1745646823853,3.0,1797.2,1796.9,5.56492792]
[1745646825464,3.0,1797.2,1797.0,5.56477452]
[1745646826667,3.0,1797.2,1796.9,5.56493774]
[1745646828964,4.635,1797.1,1796.9,5.56493774]
[1745646830000,7.635,1797.1,1797.0,5.56483027]
[1745646830571,7.635,1797.1,1796.9,5.56496693]
[1745646831177,7.635,1797.1,1796.9,5.56491557]
[1745646832077,7.635,1797.1,1797.0,5.56483027]
[1745646832581,7.635,1797.1,1796.9,5.5649227]
[1745646835784,7.635,1797.1,1796.9,5.56488048]
[1745646836764,7.635,1797.1,1796.9,5.56512962]
[1745646838593,4.635,1797.0,1796.9,5.56512962]
[1745646842781,4.635,1797.0,1796.9,6.32472962]
[1745646851270,4.635,1797.0,1796.9,7.60911146]
[1745646853308,4.635,1797.0,1796.9,6.32472962]
[1745646855610,3.511021,1797.3,1797.2,5.56421099]
[1745646855611,0.511021,1797.3,1797.2,5.56421099]
[1745646855788,5.145021,1797.3,1797.2,7.29296776]
[1745646856187,5.145021,1797.3,1797.2,13.42296775]
[1745646856387,5.145021,1797.3,1797.2,15.32170489]
[1745646867536,5.145021,1797.3,1797.2,6.12999999]
[1745646867740,5.605921,1797.3,1796.8,6.12999999]
[1745646867904,5.605921,1797.3,1797.0,5.56461953]
[1745646868630,5.605921,1797.3,1797.1,5.56449276]
[1745646872533,5.605921,1797.3,1797.2,5.56421099]
[1745646872738,5.145021,1797.3,1797.2,5.56421099]
[1745646873042,5.145021,1797.3,1797.2,6.51786776]
[1745646873439,5.145021,1797.3,1797.2,5.56421099]
[1745646874333,5.145021,1797.3,1797.2,7.72610381]
[1745646876034,5.145021,1797.3,1797.2,14.6094038]
[1745646877633,5.145021,1797.3,1797.2,14.15623168]
[1745646883761,0.511021,1797.3,1797.2,14.15623168]
[1745646884864,1e-08,1797.3,1797.2,14.15623168]
[1745646885461,4.632,1797.6,1797.2,14.15623168]
[1745646885462,4.632,1797.6,1797.5,0.78]
[1745646885758,17.1549,1798.1,1798.0,5.56173526]
[1745646885925,21.7869,1798.1,1798.0,5.56173526]
[1745646889563,21.7869,1798.1,1797.8,11.69222038]
[1745646889864,21.7869,1798.1,1797.9,5.56181269]
[1745646891069,21.7869,1798.1,1797.8,11.69217091]
[1745646891273,0.4609,1798.0,1797.8,11.69217091]
[1745646891680,0.4609,1798.0,1797.8,11.69212969]
[1745646891973,0.4609,1798.0,1797.9,5.5620446]
[1745646892181,0.4609,1798.0,1797.8,11.69217515]
[1745646892666,0.4609,1798.0,1797.9,5.5620446]
[1745646897834,5.857459,1798.0,1797.8,6.12999998]
[1745646898155,0.4609,1797.9,1797.8,6.12999998]
[1745646898354,0.4609,1797.9,1796.5,15.62617927]
[1745646898355,0.4609,1797.8,1797.4,11.69347779]
[1745646898555,4.631,1797.7,1797.4,17.25687104]
[1745646898989,4.631,1797.7,1797.4,11.69339323]
[1745646899360,4.631,1797.7,1797.5,5.5632748]
[1745646902394,4.631,1797.7,1797.4,11.69339323]
[1745646902684,4.631,1797.7,1797.4,17.25677023]
[1745646902980,4.631,1797.7,1797.4,11.69337698]
[1745646903181,4.631,1797.7,1797.4,11.69336612]
[1745646903377,4.631,1797.7,1797.5,5.56326988]
[1745646903888,4.631,1797.7,1797.4,11.69336612]
[1745646904075,4.631,1797.7,1797.4,17.2567418]
[1745646904587,4.631,1797.7,1797.4,11.69336612]
[1745646905200,4.631,1797.7,1797.5,5.56326839]
[1745646906211,5.14019,1797.7,1797.4,11.69349256]
[1745646906411,3.4609,1797.6,1797.4,6.12999998]
[1745646906779,0.4609,1797.5,1797.4,6.12999998]
[1745646910520,0.4609,1797.5,1797.1,11.69441391]
[1745646910737,0.80699,1797.5,1797.1,11.69441391]
[1745646910906,0.4609,1797.4,1797.1,11.69441391]
[1745646911226,4.631,1797.3,1797.1,11.69441391]
[1745646915212,4.631,1797.3,1797.2,5.56421099]
[1745646917123,4.631,1797.3,1797.2,6.32301099]
[1745646917642,4.631,1797.3,1797.2,5.56421099]
[1745646921871,4.631,1797.3,1797.2,8.31943595]
[1745646922182,4.631,1797.3,1797.2,9.07393595]
[1745646923658,4.631,1797.3,1797.2,8.62093563]
[1745646927172,4.631,1797.3,1797.2,14.75093561]
[1745646929052,4.631,1797.3,1797.2,14.25045346]
[1745646939563,7.631,1797.3,1797.2,6.12999998]
[1745646939768,8.0919,1797.3,1797.2,6.12999998]
[1745646953319,8.6419,1797.3,1797.2,6.12999998]
[1745646956224,8.6419,1797.3,1796.2,5.5672186]
[1745646956225,0.55,1796.9,1796.3,0.8288]
[1745646956423,13.657376,1796.8,1796.2,12.52598025]
[1745646956625,13.65750228,1796.8,1796.2,6.95879998]
[1745646956923,8.0919,1796.8,1796.3,5.56691561]
[1745646957328,8.95609,1796.8,1796.3,5.56691561]
[1745646957531,8.95609,1796.8,1796.3,5.56679968]
[1745646958933,1.0109,1796.7,1796.1,0.05]
[1745646959100,0.4609,1796.3,1796.1,0.05]
[1745646959300,6.06712337,1796.6,1796.1,6.93355715]
[1745646959301,4.631,1796.2,1796.1,6.93355715]
[1745646959610,16.694,1796.7,1796.4,5.56652694]
[1745646959805,4.631,1796.6,1796.4,5.56652694]
[1745646960025,4.631,1796.6,1796.3,5.56682445]
[1745646960220,4.631,1796.6,1796.3,5.56677564]
[1745646960424,4.631,1796.6,1796.2,11.6971873]
[1745646960614,0.4609,1796.5,1796.3,5.56696642]
[1745646963010,4.631,1796.6,1796.3,5.56677231]
[1745646963210,4.631,1796.6,1796.2,6.12999998]
[1745646963401,4.631,1796.6,1796.3,5.56674091]
[1745646963717,4.631,1796.6,1796.3,11.13348182]
[1745646964041,4.631,1796.6,1796.3,5.56674091]
[1745646964841,4.631,1796.6,1796.4,5.56657419]
[1745646968275,4.631,1796.6,1796.3,5.56699883]
[1745646973605,4.631,1796.6,1796.2,11.69712256]
[1745646974294,4.631,1796.6,1796.2,17.26419039]
[1745646974497,6.80959,1796.6,1796.2,11.69706781]
[1745646975515,6.80959,1796.6,1796.3,5.56697532]
[1745646976517,6.80959,1796.6,1796.3,5.56676305]
[1745646977418,4.631,1796.6,1796.4,5.56657418]
[1745646978612,4.631,1796.6,1796.2,11.69705733]
[1745646979509,4.631,1796.6,1796.3,5.56696493]
[1745646981716,4.631,1796.6,1796.3,11.13373885]
[1745646982820,4.631,1796.6,1796.4,5.56667948]
[1745646986816,5.14019,1796.6,1796.4,5.56667948]
[1745646992839,5.14019,1796.6,1796.3,5.56679972]
[1745646993318,5.14019,1796.6,1796.3,11.13356218]
[1745646993642,5.14019,1796.6,1796.4,5.56668421]
[1745646994511,4.631,1796.5,1796.4,5.56668421]
[1745646998331,4.631,1796.5,1796.3,5.56684882]
[1745646999756,4.631,1796.5,1796.3,5.56679849]
[1745647000942,4.631,1796.5,1796.2,11.69707394]
[1745647001676,4.631,1796.5,1796.2,17.26414011]
[1745647002130,4.631,1796.5,1796.3,5.56697755]
[1745647003065,5.145019,1796.5,1796.2,6.12999998]
[1745647003231,3.0,1796.4,1796.2,11.6971531]
[1745647003432,4.631,1796.5,1796.3,5.56674698]
[1745647020083,4.632,1796.4,1796.3,5.56674698]
[1745647020683,4.632,1796.4,1796.2,11.69712018]
[1745647022254,4.632,1796.4,1796.2,6.12999998]
[1745647022453,5.0952,1796.4,1796.2,6.12999998]
[1745647023583,5.0952,1796.4,1796.2,11.69729517]
[1745647024561,4.632,1796.4,1796.2,11.69729517]
[1745647024884,4.631,1796.3,1796.2,11.69729517]
[1745647025086,4.631,1796.3,1796.2,5.56729519]
[1745647038320,4.631,1796.3,1796.1,5.61739012]
[1745647046852,4.631,1796.3,1796.2,5.56730876]
[1745647053687,4.631,1796.3,1796.1,6.44213666]
[1745647053892,4.631,1796.3,1796.2,5.56730876]
[1745647057916,4.631,1796.3,1796.2,6.52176539]
[1745647059487,4.631,1796.3,1796.2,5.56730876]
[1745647082471,5.0941,1796.3,1796.1,0.05]
[1745647082677,5.555,1796.3,1796.1,0.05]
[1745647083838,5.555,1796.3,1796.1,5.61760791]
[1745647084767,5.555,1796.3,1796.1,0.05]
[1745647084942,0.5555,1796.2,1796.1,0.05]
[1745647087424,5.0919,1796.3,1796.1,0.05]
[1745647087727,5.0919,1796.3,1796.1,5.61749747]
[1745647088017,4.631,1796.3,1796.1,5.61749747]
[1745647089392,4.631,1796.3,1796.1,0.05]
[1745647092340,4.631,1796.3,1796.1,5.61761746]
[1745647093700,5.0941,1796.3,1796.1,5.61761746]
[1745647098443,5.555,1796.3,1796.1,0.05]
[1745647101538,5.0941,1796.3,1796.1,0.05]
[1745647102035,5.555,1796.3,1796.1,0.05]
[1745647107321,1.96535663,1796.2,1796.1,0.05]
[1745647107547,11.23861105,1796.2,1796.1,0.05]
[1745647107760,5.56875677,1795.8,1795.2,6.32460946]
[1745647108058,0.95445663,1795.6,1795.1,6.37493228]
[1745647108356,0.4609,1795.4,1795.1,0.8044]
[1745647108670,0.4609,1795.4,1795.2,5.57026316]
[1745647111065,0.4609,1795.4,1795.1,6.37489148]
[1745647111267,0.4609,1795.4,1795.2,5.57036182]
[1745647111561,0.96989,1795.4,1795.2,5.57036182]
[1745647112674,0.96989,1795.4,1795.1,6.3749723]
[1745647113635,0.96989,1795.4,1795.1,5.6205723]
[1745647114463,0.96989,1795.4,1795.1,5.62050082]
[1745647115459,0.96989,1795.4,1795.2,5.57040725]
[1745647115838,0.96989,1795.4,1795.1,5.62055867]
[1745647117270,0.96989,1795.4,1795.2,5.57040355]
[1745647121867,0.50899,1795.4,1795.3,5.5700997]
[1745647122078,4.629,1795.5,1795.4,5.56978946]
[1745647123345,4.629,1795.5,1795.3,5.5699025]
[1745647130805,4.629,1795.5,1795.3,5.56988112]
[1745647131285,4.629,1795.5,1795.4,7.27864609]
[1745647132386,4.629,1795.5,1795.4,6.32418946]
[1745647138338,4.629,1795.5,1795.3,5.56988112]
[1745647138801,4.629,1795.5,1795.3,11.13976075]
[1745647141007,4.629,1795.5,1795.3,5.56987963]
[1745647141369,4.629,1795.5,1795.4,5.56978946]
[1745647142423,5.0919,1795.5,1795.3,5.56987963]
[1745647143324,5.0919,1795.5,1795.3,11.13977034]
[1745647143525,5.0919,1795.5,1795.3,5.56987963]
[1745647146894,5.5528,1795.5,1795.2,5.57028304]
[1745647147095,0.55528,1795.4,1795.2,5.57028304]
[1745647148138,0.55528,1795.4,1795.2,11.14049893]
[1745647148308,5.5528,1795.5,1795.2,5.57021589]
[1745647148633,5.5528,1795.5,1795.2,5.57040998]
[1745647149195,5.5528,1795.5,1795.3,5.56999075]
[1745647150003,5.5528,1795.5,1795.3,5.56988958]
[1745647153828,5.0919,1795.5,1795.3,5.56988958]
[1745647154141,5.0919,1795.5,1795.4,5.56978946]
[1745647156815,4.629,1795.5,1795.4,5.56978946]
[1745647157024,4.629,1795.5,1795.4,6.35358946]
[1745647157533,4.629,1795.5,1795.4,7.30804609]
[1745647158550,4.629,1795.5,1795.4,6.35358946]
[1745647161557,4.629,1795.5,1795.4,5.56978946]
[1745647165456,5.0919,1795.5,1795.4,5.56978946]
[1745647166661,4.629,1795.5,1795.4,5.56978946]
[1745647193386,4.629,1795.5,1795.2,5.57034911]
[1745647193573,0.4609,1795.4,1795.2,5.57034911]
[1745647193988,0.4609,1795.4,1795.1,5.62058953]
[1745647194799,0.4609,1795.4,1795.1,5.61089153]
[1745647194966,0.96989,1795.4,1795.1,5.61089153]
[1745647195168,0.96989,1795.4,1795.1,11.18137654]
[1745647195377,0.96989,1795.4,1795.1,5.61078701]
[1745647197367,0.5,1795.3,1795.1,5.61078701]
[1745647198508,0.5,1795.3,1795.2,5.57040998]
[1745647202408,0.96989,1795.4,1795.2,5.57040998]
[1745647203409,0.96989,1795.4,1795.1,5.61091064]
[1745647203889,0.96989,1795.4,1795.1,11.18140423]
[1745647205480,0.96989,1795.4,1795.2,5.57038327]
[1745647208616,0.96989,1795.4,1795.1,5.61083286]
[1745647209079,0.96989,1795.4,1795.2,5.57039725]
[1745647212403,4.629,1795.5,1795.3,0.95541885]
[1745647212599,7.629,1795.5,1795.4,5.56978946]
[1745647219216,7.629,1795.5,1795.3,5.56990158]
[1745647219841,7.629,1795.5,1795.4,5.56978946]
[1745647221643,7.629,1795.5,1795.3,11.13977752]
[1745647221846,8.3919,1795.5,1795.3,11.13977752]
[1745647222443,8.3919,1795.5,1795.3,5.56987436]
[1745647222740,8.3919,1795.5,1795.3,11.13974163]
[1745647223701,8.3919,1795.5,1795.3,5.56986727]
[1745647224710,8.3919,1795.5,1795.3,11.13974617]
[1745647225350,8.3919,1795.5,1795.3,5.56986727]
[1745647225849,5.3919,1795.5,1795.4,5.56978946]
[1745647228540,5.3919,1795.5,1795.3,5.56991877]
[1745647229708,5.3919,1795.5,1795.3,11.13979865]
[1745647230436,5.3919,1795.5,1795.3,5.56987988]
[1745647230644,0.53919,1795.4,1795.3,5.56987988]
[1745647230944,4.629,1795.5,1795.3,5.56987988]
[1745647232740,4.629,1795.5,1795.3,11.13976276]
[1745647232944,4.629,1795.5,1795.4,5.56978946]
[1745647235742,4.629,1795.5,1795.3,5.56987988]
[1745647235743,5.0899,1795.5,1795.3,5.56985775]
[1745647243626,4.629,1795.5,1795.4,5.56978946]
[1745647249734,5.0919,1795.5,1795.4,5.56978946]
[1745647250658,4.629,1795.5,1795.4,5.56978946]
[1745647262129,4.629,1795.5,1795.3,0.815]
[1745647262316,4.629,1795.5,1795.2,5.57023535]
[1745647262487,4.629,1795.5,1795.3,5.57007368]
[1745647264525,4.629,1795.5,1795.2,5.57020644]
[1745647264728,0.4629,1795.4,1795.2,11.1404056]
[1745647264901,4.625,1795.3,1795.2,5.57019916]
[1745647265592,4.625,1795.3,1795.1,5.61079489]
[1745647268304,4.625,1795.3,1795.2,5.57040998]
[1745647277983,4.625,1795.3,1795.2,7.28332883]
[1745647284348,20.1709,1795.8,1795.7,5.56885894]
[1745647284349,16.71,1795.8,1795.7,5.56885894]
[1745647284552,16.71,1795.8,1795.7,6.52427779]
[1745647284553,21.333,1795.8,1795.7,6.52427779]
[1745647285882,21.333,1795.8,1795.7,5.56885894]
[1745647286187,23.4663,1795.8,1795.7,5.56885894]
[1745647287252,21.333,1795.8,1795.7,5.56885894]
[1745647287986,21.333,1795.8,1795.7,6.52427779]
[1745647291777,21.333,1795.8,1795.7,5.56885894]
[1745647297406,4.623,1795.8,1795.7,5.56885894]
[1745647301783,5.0839,1795.8,1795.6,5.56913739]
[1745647301978,5.59229,1795.8,1795.6,5.56913739]
[1745647302816,5.59229,1795.8,1795.6,11.13808879]
[1745647303115,5.0839,1795.8,1795.6,11.13808879]
[1745647303718,5.0839,1795.8,1795.7,5.56885894]
[1745647307731,4.623,1795.8,1795.7,5.56885894]
[1745647309333,4.623,1795.8,1795.6,5.56900721]
[1745647314349,4.623,1795.8,1795.6,11.13795562]
[1745647315049,4.623,1795.8,1795.6,5.56894841]
[1745647315948,0.4609,1795.7,1795.3,11.69991013]
[1745647316136,0.4609,1795.7,1795.2,5.57027607]
[1745647316340,0.4609,1795.6,1795.2,5.57030651]
[1745647317251,3.4609,1795.6,1795.2,5.57030651]
[1745647319051,0.4609,1795.5,1795.2,5.57030651]
[1745647319251,4.621,1795.4,1795.2,5.57030651]
[1745647319748,4.621,1795.4,1795.3,5.5700997]
[1745647320324,4.621,1795.4,1795.2,5.57022585]
[1745647321655,4.621,1795.4,1795.2,11.1404017]
[1745647321843,4.621,1795.4,1795.2,5.57017585]
[1745647323323,4.621,1795.4,1795.3,5.5700997]
[1745647342367,4.621,1795.4,1795.3,8.43996792]
[1745647353851,4.621,1795.4,1795.3,5.5700997]
[1745647355484,4.621,1795.4,1795.3,6.52551855]
[1745647360404,4.621,1795.4,1795.3,5.5700997]
[1745647364420,4.621,1795.4,1795.3,6.3627997]
[1745647368712,4.61543006,1795.4,1795.3,6.3627997]
[1745647368915,4.61543006,1795.4,1795.3,7.65166095]
[1745647371832,4.61543006,1795.4,1795.3,7.60166095]
[1745647373723,4.61543006,1795.4,1795.3,8.5570798]
[1745647380322,4.61543006,1795.4,1795.3,6.47551855]
[1745647384759,4.61543006,1795.4,1795.3,7.23961855]
[1745647390387,0.4609,1795.9,1795.8,5.56854883]
[1745647390550,5.0799,1795.9,1795.8,5.56854883]
[1745647400467,5.0799,1795.9,1795.7,5.56868365]
[1745647400468,7.25879,1795.9,1795.7,5.56868365]
[1745647401061,7.25879,1795.9,1795.8,5.56854883]
[1745647402271,4.619,1795.9,1795.8,5.56854883]
[1745647406883,8.0799,1795.9,1795.6,5.56900877]
[1745647407048,8.0799,1795.9,1795.7,5.5688433]
[1745647407681,8.0799,1795.9,1795.6,5.56895692]
[1745647407886,8.0799,1795.9,1795.6,11.13799164]
[1745647408057,10.55879,1795.9,1795.6,11.13799164]
[1745647408811,10.55879,1795.9,1795.7,5.56881156]
[1745647409163,10.55879,1795.9,1795.6,5.56897172]
[1745647409882,0.4609,1795.8,1795.2,7.87781883]
[1745647410087,0.4609,1795.8,1795.5,5.56944562]
[1745647410267,1.516779,1795.8,1795.5,5.56944562]
[1745647410984,1.516779,1795.8,1795.2,13.44820743]
[1745647411184,0.4609,1795.8,1795.5,5.5691868]
[1745647411384,0.4609,1795.8,1795.6,5.56887957]
[1745647411588,8.0799,1795.9,1795.7,5.56881897]
[1745647412706,8.0799,1795.9,1795.7,11.13753915]
[1745647412864,8.0799,1795.9,1795.7,5.56872018]
[1745647413166,4.619,1795.9,1795.8,5.56854883]
[1745647415801,4.619,1795.9,1795.8,6.52396768]
[1745647420219,4.619,1795.9,1795.8,7.30996768]
[1745647425419,4.619,1795.9,1795.8,13.43996766]
[1745647430627,4.619,1795.9,1795.8,11.69854881]
[1745647431123,4.619,1795.9,1795.8,13.63218588]
[1745647431597,4.619,1795.9,1795.8,14.58760473]
[1745647431900,4.619,1795.9,1795.8,15.39670473]
[1745647435149,4.615,1796.2,1796.0,6.33312873]
[1745647435358,4.615,1796.2,1796.1,5.56761872]
[1745647435523,4.615,1796.2,1796.1,6.85323535]
[1745647436260,1.50541885,1796.8,1796.6,5.56606924]
[1745647436261,4.615,1796.7,1796.6,5.56606924]
[1745647436460,4.615,1796.7,1796.6,6.52148809]
[1745647436622,4.615,1796.7,1796.6,5.56606924]
[1745647440455,4.615,1796.7,1796.6,6.75582303]
[1745647443659,4.615,1796.7,1796.6,5.56606924]
[1745647448264,4.615,1796.7,1796.6,12.19698719]
[1745647448430,5.114,1797.0,1796.9,5.56513996]
[1745647449041,0.5,1797.0,1796.9,6.38853996]
[1745647449242,16.703,1797.3,1797.2,5.56421099]
[1745647449243,21.317,1797.3,1797.2,5.56421099]
[1745647450175,4.614,1797.3,1797.2,6.06512896]
[1745647450659,4.614,1797.3,1797.2,6.88852896]
[1745647450876,4.614,1797.6,1797.5,5.56303934]
[1745647457189,0.4609,1797.5,1797.1,5.56436449]
[1745647457480,0.4609,1797.4,1797.0,11.69476142]
[1745647457684,3.4609,1797.3,1797.0,6.12999998]
[1745647457887,0.4609,1797.1,1796.7,5.56552666]
[1745647458190,6.53275767,1797.1,1796.6,11.69590952]
[1745647458377,0.4609,1797.0,1796.6,6.12999998]
[1745647458579,0.4609,1796.8,1796.3,11.69687021]
[1745647458889,0.4609,1796.6,1796.3,11.69687021]
[1745647459487,0.4609,1796.6,1796.3,6.12999998]
[1745647460384,0.4609,1796.6,1796.3,7.24391795]
[1745647460680,0.4609,1796.6,1796.4,5.56654097]
[1745647463277,4.612,1796.7,1796.5,6.06729704]
[1745647463481,4.612,1796.7,1796.6,5.56606924]
[1745647464550,4.612,1796.7,1796.4,0.8226]
[1745647464762,4.612,1796.7,1796.4,6.38910171]
[1745647464961,4.612,1796.7,1796.4,5.56650171]
[1745647465167,5.0732,1796.7,1796.4,5.56650171]
[1745647466395,4.612,1796.7,1796.4,5.56650171]
[1745647469164,4.612,1796.7,1796.3,12.19790635]
[1745647469165,0.4609,1796.6,1796.3,6.12999998]
[1745647469371,0.4609,1796.6,1796.3,11.69696976]
[1745647470067,0.4609,1796.6,1796.3,11.69677263]
[1745647470271,0.4609,1796.6,1796.4,5.56652095]
[1745647470472,0.4609,1796.6,1796.3,11.69681339]
[1745647470893,0.4609,1796.6,1796.3,11.69680582]
[1745647471270,0.4609,1796.6,1796.4,5.5666122]
[1745647471798,0.4609,1796.6,1796.3,6.12999998]
[1745647472103,4.612,1796.7,1796.5,5.56637907]
[1745647472303,4.612,1796.7,1796.3,6.93839998]
[1745647472513,4.612,1796.7,1796.4,5.56645297]
[1745647473004,4.612,1796.7,1796.3,11.69680546]
[1745647473505,4.612,1796.7,1796.4,5.56652731]
[1745647474603,4.612,1796.7,1796.3,11.69680976]
[1745647474787,4.612,1796.7,1796.4,5.5665736]
[1745647477616,4.612,1796.7,1796.3,17.26377668]
[1745647477821,4.612,1796.7,1796.3,11.69680156]
[1745647478596,4.612,1796.7,1796.3,11.69676062]
[1745647479318,4.612,1796.7,1796.4,5.56668155]
[1745647479481,4.612,1796.7,1796.3,11.6968]
[1745647479804,4.612,1796.7,1796.3,17.26355856]
[1745647480009,4.612,1796.7,1796.4,5.56663851]
[1745647482211,0.4609,1796.6,1796.3,13.5028244]
[1745647482516,4.614,1796.5,1796.3,13.5028244]
[1745647483181,4.614,1796.5,1796.3,11.69675854]
[1745647484115,4.614,1796.5,1796.3,6.12999998]
[1745647484487,4.614,1796.5,1796.3,11.69697498]
[1745647485519,4.614,1796.5,1796.3,6.12999998]
[1745647489193,4.614,1796.5,1796.1,5.56749639]
[1745647489518,0.4609,1796.4,1796.1,5.56749639]
[1745647494322,0.4609,1796.4,1796.1,5.56742113]
[1745647495429,0.4609,1796.4,1796.1,11.13481925]
[1745647495724,0.4609,1796.4,1796.2,5.56729735]
[1745647496297,4.614,1796.5,1796.3,5.56699883]
[1745647497835,4.614,1796.5,1796.3,5.56686097]
[1745647498132,4.614,1796.5,1796.4,5.56668893]
[1745647498315,4.614,1796.5,1796.3,5.56687924]
[1745647501471,4.614,1796.5,1796.3,11.1336463]
[1745647501617,4.614,1796.5,1796.3,5.56676706]
[1745647508550,4.614,1796.5,1796.4,5.56668893]
[1745647515139,4.614,1796.5,1796.4,6.35588893]
[1745647519290,4.614,1796.5,1796.4,12.48588891]
[1745647527718,4.614,1796.5,1796.4,13.44007881]
[1745647532915,4.612,1796.7,1796.6,5.56588484]
[1745647537123,3.0,1796.6,1796.4,6.12999998]
[1745647537322,0.4609,1796.4,1796.0,11.69790116]
[1745647537481,4.612,1796.3,1796.0,11.69790116]
[1745647537921,4.612,1796.3,1796.0,11.69768093]
[1745647538233,4.612,1796.3,1796.0,17.2653805]
[1745647538384,4.612,1796.3,1796.0,11.69768093]
[1745647538714,4.612,1796.3,1796.0,17.26535934]
[1745647538909,4.612,1796.3,1796.1,5.56756674]
[1745647539129,4.612,1796.3,1796.2,5.56730876]
[1745647539621,4.612,1796.3,1796.2,6.52149866]
[1745647539826,4.612,1796.3,1796.2,6.8514353]
[1745647541312,4.613,1796.6,1796.5,5.56607712]
[1745647544701,4.613,1796.6,1796.5,6.87564912]
[1745647545099,4.613,1796.6,1796.5,13.0056491]
[1745647545640,3.4609,1797.2,1796.9,5.56488833]
[1745647545930,4.613,1797.1,1797.0,5.56476847]
[1745647546496,4.613,1797.1,1796.9,5.56488833]
[1745647546497,4.613,1797.1,1796.9,5.56497942]